[Event "FIDE Womens World Cup 2021"]
[Site "Sochi"]
[Date "2021.07.20"]
[Round "3.6"]
[White "Shuvalova, Polina"]
[Black "Garifullina, Leya"]
[Result "1/2-1/2"]
[ECO "B52"]
[WhiteElo "2489"]
[BlackElo "2390"]
[Annotator "ChessBase"]
[PlyCount "197"]
[EventDate "2021.07.12"]
[EventType "k.o."]
[EventCountry "RUS"]
[SourceTitle "playchess.com"]
[Source "ChessBase"]
[SourceQuality "1"]
[TimeControl "600+10"]

1. e4 {[%emt 0:00:02]} c5 {[%emt 0:00:13]} 2. Nf3 {[%emt 0:00:03]} d6 {[%emt 0:00:01]} 3. Bb5+ {[%emt 0:00:02]} Bd7 {[%emt 0:00:00]} 4. Bxd7+ {[%emt 0:00:02]} Qxd7 {[%emt 0:00:01]} 5. c4 {[%emt 0:00:02]} Nf6 {[%emt 0:00:02]} 6. Nc3 {[%emt 0:00:02]} g6 {[%emt 0:00:01]} 7. d4 {[%emt 0:00:09]} cxd4 {[%emt 0:00:01]} 8. Nxd4 {[%emt 0:00:01]} Bg7 {[%emt 0:00:01]} 9. h3 {[%emt 0:01:14]} O-O {[%emt 0:00:02]} 10. Be3 {[%emt 0:00:02]} Nc6 {[%emt 0:00:46]} 11. O-O {[%emt 0:00:11]} a6 {[%emt 0:00:31]} 12. a4 {[%emt 0:01:11]} Qc7 {[%emt 0:00:20]} 13. b3 {[%emt 0:00:07]} Qa5 {[%emt 0:00:11]} 14. Qd3 {[%emt 0:01:14]} Nd7 {[%emt 0:00:51]} 15. Rfd1 {[%emt 0:01:56]} Nc5 {[%emt 0:00:46]} 16. Qc2 {[%emt 0:00:06]} Nb4 {[%emt 0:00:09]} 17. Qb2 {[%emt 0:00:22]} e6 {[%emt 0:01:12]} 18. Rab1 {[%emt 0:00:07]} Qc7 {[%emt 0:00:08]} 19. Qd2 {[%emt 0:00:32]} Rfd8 {[%emt 0:00:43]} 20. Nde2 {[%emt 0:00:44]} Nc6 {[%emt 0:01:48]} 21. b4 {[%emt 0:00:34]} Nd7 {[%emt 0:00:03]} 22. Qxd6 {[%emt 0:00:11]} Qxd6 {[%emt 0:00:04]} 23. Rxd6 {[%emt 0:00:02]} Bf8 {[%emt 0:00:06]} 24. Rdd1 {[%emt 0:00:32]} Bxb4 {[%emt 0:00:11]} 25. Nd5 {[%emt 0:00:33]} Ba5 {[%emt 0:00:53]} 26. Nb6 {[%emt 0:02:27]} Nxb6 {[%emt 0:00:08]} 27. Rxd8+ {[%emt 0:00:02]} Rxd8 {[%emt 0:00:02]} 28. Bxb6 {[%emt 0:00:03]} Rd2 {[%emt 0:00:03]} 29. Nf4 {[%emt 0:00:46]} Rc2 {[%emt 0:00:13]} 30. Be3 {[%emt 0:01:17]} Bb4 {[%emt 0:00:09]} 31. Nd3 {[%emt 0:00:08]} Rxc4 {[%emt 0:00:17]} 32. f3 {[%emt 0:00:03]} a5 {[%emt 0:00:05]} 33. Rc1 {[%emt 0:00:13]} Rxc1+ {[%emt 0:00:06]} 34. Bxc1 {[%emt 0:00:05]} Nd4 {[%emt 0:00:05]} 35. Bb2 {[%emt 0:00:09]} Bc3 {[%emt 0:00:37]} 36. Bxc3 {[%emt 0:00:25]} Ne2+ {[%emt 0:00:01]} 37. Kf2 {[%emt 0:00:01]} Nxc3 {[%emt 0:00:01]} 38. Nb2 {[%emt 0:00:00]} b5 {[%emt 0:00:08]} 39. axb5 {[%emt 0:00:06]} Nxb5 {[%emt 0:00:00]} 40. Ke3 {[%emt 0:00:03]} Kg7 {[%emt 0:00:03]} 41. e5 {[%emt 0:00:01]} g5 {[%emt 0:00:03]} 42. Kd3 {[%emt 0:00:14]} Kg6 {[%emt 0:00:01]} 43. g4 {[%emt 0:00:10]} Na7 {[%emt 0:00:11]} 44. Na4 {[%emt 0:00:28]} h5 {[%emt 0:00:03]} 45. Ke4 {[%emt 0:00:10]} h4 {[%emt 0:00:05]} 46. Nc5 {[%emt 0:00:17]} Nb5 {[%emt 0:00:04]} 47. Kd3 {[%emt 0:00:06]} Nc7 {[%emt 0:00:03]} 48. Kc4 {[%emt 0:00:33]} Nd5 {[%emt 0:00:02]} 49. Ne4 {[%emt 0:00:02]} Nf4 {[%emt 0:00:05]} 50. Nf2 {[%emt 0:00:01]} Ng2 {[%emt 0:00:05]} 51. Nd3 {[%emt 0:00:26]} Ne3+ {[%emt 0:00:22]} 52. Kb5 {[%emt 0:00:01]} Nc2 {[%emt 0:00:05]} 53. Kxa5 {[%emt 0:00:07]} Nd4 {[%emt 0:00:03]} 54. Ne1 {[%emt 0:00:23]} Nc6+ {[%emt 0:00:03]} 55. Kb5 {[%emt 0:00:01]} Nxe5 {[%emt 0:00:01]} 56. Kc5 {[%emt 0:00:04]} Kf6 {[%emt 0:00:01]} 57. Kd4 {[%emt 0:00:02]} Ng6 {[%emt 0:00:04]} 58. Nd3 {[%emt 0:00:08]} e5+ {[%emt 0:01:11]} 59. Ke4 {[%emt 0:00:01]} Nf4 {[%emt 0:00:02]} 60. Nxe5 {[%emt 0:00:37]} Nxh3 {[%emt 0:00:03]} 61. Nd3 {[%emt 0:00:05]} Ng1 {[%emt 0:00:04]} 62. Ke3 {[%emt 0:00:17]} h3 {[%emt 0:00:03]} 63. Kf2 {[%emt 0:00:02]} h2 {[%emt 0:00:02]} 64. Kg2 {[%emt 0:00:02]} Nxf3 {[%emt 0:00:02]} 65. Nf2 {[%emt 0:00:04]} Nd2 {[%emt 0:00:06]} 66. Kxh2 {[%emt 0:00:13]} Ke5 {[%emt 0:00:01]} 67. Nh3 {[%emt 0:00:21]} f6 {[%emt 0:00:14]} 68. Kg3 {[%emt 0:00:01]} Ke4 {[%emt 0:00:02]} 69. Nf2+ {[%emt 0:00:05]} Kd4 {[%emt 0:00:10]} 70. Nd1 {[%emt 0:00:23]} Kd3 {[%emt 0:00:27]} 71. Kg2 {[%emt 0:00:28]} Nc4 {[%emt 0:00:30]} 72. Kf3 {[%emt 0:00:08]} Nd2+ {[%emt 0:00:03]} 73. Kg2 {[%emt 0:00:03]} Ke4 {[%emt 0:00:10]} 74. Kg3 {[%emt 0:00:18]} Ke5 {[%emt 0:00:04]} 75. Ne3 {[%emt 0:00:06]} Ke4 {[%emt 0:00:49]} 76. Nf5 {[%emt 0:00:07]} Nc4 {[%emt 0:00:06]} 77. Ng7 {[%emt 0:00:08]} Nd6 {[%emt 0:01:22]} 78. Nh5 {[%emt 0:00:04]} Ne8 {[%emt 0:00:02]} 79. Kg2 {[%emt 0:00:09]} Ke5 {[%emt 0:00:10]} 80. Kf3 {[%emt 0:00:02]} Nc7 {[%emt 0:00:07]} 81. Ng3 {[%emt 0:00:03]} Ne6 {[%emt 0:00:02]} 82. Nh5 {[%emt 0:00:08]} Nf4 {[%emt 0:00:12]} 83. Ng7 {[%emt 0:00:11]} Ne6 {[%emt 0:01:40]} 84. Nh5 {[%emt 0:00:02]} Nd4+ {[%emt 0:00:02]} 85. Ke3 {[%emt 0:00:02]} Nc6 {[%emt 0:00:06]} 86. Kf3 {[%emt 0:00:04]} Ke6 {[%emt 0:00:03]} 87. Ng7+ {[%emt 0:00:06]} Kd5 {[%emt 0:00:09]} 88. Nh5 {[%emt 0:00:27]} Ke5 {[%emt 0:00:21]} 89. Ng7 {[%emt 0:00:07]} Nd4+ {[%emt 0:00:04]} 90. Ke3 {[%emt 0:00:01]} Nb5 {[%emt 0:00:05]} 91. Nh5 {[%emt 0:00:09]} Nd6 {[%emt 0:01:06]} 92. Kf3 {[%emt 0:00:03]} Nf7 {[%emt 0:00:13]} 93. Ke3 {[%emt 0:00:14]} f5 {[%emt 0:01:28]} 94. gxf5 {[%emt 0:00:13]} g4 {[%emt 0:00:07]} 95. f6 {[%emt 0:00:31]} Nd6 {[%emt 0:00:12]} 96. Kf2 {[%emt 0:00:13]} Ne4+ {[%emt 0:00:02]} 97. Kg2 {[%emt 0:00:03]} Nxf6 {[%emt 0:00:07]} 98. Kg3 {[%emt 0:00:11]} Nxh5+ {[%emt 0:00:07]} 99. Kxg4 {[%emt 0:00:01]} 1/2-1/2

[Event "FIDE Womens World Cup 2021"]
[Site "Sochi"]
[Date "2021.07.24"]
[Round "4.3"]
[White "Saduakassova, Dinara"]
[Black "Kashlinskaya, Alina"]
[Result "1-0"]
[ECO "E01"]
[WhiteElo "2483"]
[BlackElo "2488"]
[Annotator "ChessBase"]
[PlyCount "163"]
[EventDate "2021.07.12"]
[EventType "k.o."]
[EventCountry "RUS"]
[SourceTitle "playchess.com"]
[Source "ChessBase"]
[SourceQuality "1"]
[TimeControl "1500+10"]

1. d4 {[%emt 0:00:03]} Nf6 {[%emt 0:00:01]} 2. c4 {[%emt 0:00:02]} e6 {[%emt 0:00:02]} 3. g3 {[%emt 0:00:02]} d5 {[%emt 0:00:05]} 4. Bg2 {[%emt 0:00:02]} Bb4+ {[%emt 0:00:06]} 5. Nd2 {[%emt 0:00:01]} O-O {[%emt 0:00:10]} 6. Ngf3 {[%emt 0:00:02]} dxc4 {[%emt 0:00:12]} 7. Qc2 {[%emt 0:00:18]} c5 {[%emt 0:00:18]} 8. dxc5 {[%emt 0:03:42]} Nc6 {[%emt 0:00:08]} 9. O-O {[%emt 0:00:16]} e5 {[%emt 0:00:53]} 10. Nxc4 {[%emt 0:04:16]} e4 {[%emt 0:04:57]} 11. Rd1 {[%emt 0:01:21]} Qe7 {[%emt 0:00:02]} 12. Ng5 {[%emt 0:01:49]} Bxc5 {[%emt 0:00:25]} 13. Be3 {[%emt 0:01:24]} Bf5 {[%emt 0:02:59]} 14. Bxc5 {[%emt 0:02:08]} Qxc5 {[%emt 0:00:02]} 15. Ne3 {[%emt 0:00:01]} Qxc2 {[%emt 0:00:16]} 16. Nxc2 {[%emt 0:00:01]} Rad8 {[%emt 0:03:38]} 17. Ne3 {[%emt 0:00:20]} Bg6 {[%emt 0:00:02]} 18. Nh3 {[%emt 0:01:02]} h6 {[%emt 0:01:42]} 19. Nf4 {[%emt 0:00:06]} Bh7 {[%emt 0:00:01]} 20. h4 {[%emt 0:00:22]} g5 {[%emt 0:01:09]} 21. hxg5 {[%emt 0:01:09]} hxg5 {[%emt 0:00:01]} 22. Nh3 {[%emt 0:01:47]} Nd4 {[%emt 0:00:06]} 23. Nxg5 {[%emt 0:00:39]} Nxe2+ {[%emt 0:00:45]} 24. Kf1 {[%emt 0:00:01]} Nd4 {[%emt 0:00:04]} 25. Rd2 {[%emt 0:02:22]} Nf3 {[%emt 0:03:52]} 26. Rxd8 {[%emt 0:00:33]} Rxd8 {[%emt 0:00:00]} 27. Nxf3 {[%emt 0:01:39]} exf3 {[%emt 0:00:02]} 28. Bxf3 {[%emt 0:00:01]} Rd2 {[%emt 0:00:08]} 29. b3 {[%emt 0:01:06]} Ne4 {[%emt 0:01:12]} 30. Ke1 {[%emt 0:00:26]} Rb2 {[%emt 0:00:30]} 31. Nc4 {[%emt 0:00:26]} Rc2 {[%emt 0:00:05]} 32. Ne3 {[%emt 0:00:20]} Rb2 {[%emt 0:00:01]} 33. Nd1 {[%emt 0:00:19]} Rc2 {[%emt 0:00:06]} 34. Be2 {[%emt 0:00:29]} Bg6 {[%emt 0:02:33]} 35. Ne3 {[%emt 0:00:11]} Rb2 {[%emt 0:00:34]} 36. Nc4 {[%emt 0:00:42]} Rc2 {[%emt 0:00:01]} 37. Bd3 {[%emt 0:00:31]} Rc3 {[%emt 0:00:05]} 38. Ne5 {[%emt 0:00:24]} Bh7 {[%emt 0:00:36]} 39. Rd1 {[%emt 0:00:24]} Rc5 {[%emt 0:00:58]} 40. Ng4 {[%emt 0:00:24]} Kg7 {[%emt 0:00:09]} 41. Bxe4 {[%emt 0:00:27]} Bxe4 {[%emt 0:00:01]} 42. Ne3 {[%emt 0:00:02]} Bf3 {[%emt 0:00:18]} 43. Rd4 {[%emt 0:00:07]} Rc1+ {[%emt 0:00:19]} 44. Kd2 {[%emt 0:00:01]} Ra1 {[%emt 0:00:09]} 45. Ra4 {[%emt 0:00:08]} a6 {[%emt 0:00:02]} 46. Nc2 {[%emt 0:00:15]} Rd1+ {[%emt 0:00:26]} 47. Ke3 {[%emt 0:00:01]} Bc6 {[%emt 0:00:02]} 48. Rg4+ {[%emt 0:00:05]} Kf6 {[%emt 0:00:01]} 49. Nd4 {[%emt 0:00:07]} Bd7 {[%emt 0:00:14]} 50. Rf4+ {[%emt 0:00:02]} Kg7 {[%emt 0:00:01]} 51. Nf5+ {[%emt 0:00:18]} Bxf5 {[%emt 0:02:01]} 52. Rxf5 {[%emt 0:00:01]} Ra1 {[%emt 0:00:01]} 53. Ra5 {[%emt 0:00:03]} Rd1 {[%emt 0:00:04]} 54. Rc5 {[%emt 0:00:12]} Ra1 {[%emt 0:00:28]} 55. Rc2 {[%emt 0:00:11]} Re1+ {[%emt 0:00:52]} 56. Kd4 {[%emt 0:00:24]} Re6 {[%emt 0:00:01]} 57. f4 {[%emt 0:00:19]} Rg6 {[%emt 0:00:11]} 58. Rc7 {[%emt 0:00:16]} Rb6 {[%emt 0:00:29]} 59. Kc4 {[%emt 0:00:19]} Kg6 {[%emt 0:00:02]} 60. a4 {[%emt 0:00:19]} a5 {[%emt 0:00:02]} 61. Rc5 {[%emt 0:00:01]} Rb4+ {[%emt 0:00:02]} 62. Kc3 {[%emt 0:00:05]} Re4 {[%emt 0:00:28]} 63. Rxa5 {[%emt 0:00:16]} Re3+ {[%emt 0:00:00]} 64. Kc4 {[%emt 0:00:01]} Rxg3 {[%emt 0:00:07]} 65. Rb5 {[%emt 0:00:16]} Rg4 {[%emt 0:00:01]} 66. Rxb7 {[%emt 0:00:03]} Rxf4+ {[%emt 0:00:01]} 67. Kc3 {[%emt 0:00:19]} Rf3+ {[%emt 0:00:12]} 68. Kd4 {[%emt 0:00:12]} Rf4+ {[%emt 0:00:07]} 69. Ke3 {[%emt 0:00:02]} Rf1 {[%emt 0:00:05]} 70. a5 {[%emt 0:00:05]} Ra1 {[%emt 0:00:02]} 71. b4 {[%emt 0:00:00]} f5 {[%emt 0:00:18]} 72. Rb8 {[%emt 0:00:07]} Kg5 {[%emt 0:00:15]} 73. Rg8+ {[%emt 0:00:10]} Kf6 {[%emt 0:00:02]} 74. Kd4 {[%emt 0:00:02]} f4 {[%emt 0:00:45]} 75. Rf8+ {[%emt 0:00:03]} Kg5 {[%emt 0:00:01]} 76. Kc5 {[%emt 0:00:04]} Kg4 {[%emt 0:00:08]} 77. Kb6 {[%emt 0:00:04]} f3 {[%emt 0:00:01]} 78. b5 {[%emt 0:00:03]} Kg3 {[%emt 0:00:42]} 79. a6 {[%emt 0:00:02]} f2 {[%emt 0:00:02]} 80. a7 {[%emt 0:00:07]} Ra4 {[%emt 0:00:03]} 81. Rxf2 {[%emt 0:00:06]} Kxf2 {[%emt 0:00:02]} 82. Kb7 {[%emt 0:00:01]} 1-0

[Event "FIDE Womens World Cup 2021"]
[Site "Sochi"]
[Date "2021.07.24"]
[Round "4.4"]
[White "Lagno, Kateryna"]
[Black "Assaubayeva, Bibisara"]
[Result "1/2-1/2"]
[ECO "B51"]
[WhiteElo "2559"]
[BlackElo "2389"]
[Annotator "ChessBase"]
[PlyCount "102"]
[EventDate "2021.07.12"]
[EventType "k.o."]
[EventCountry "RUS"]
[SourceTitle "playchess.com"]
[Source "ChessBase"]
[SourceQuality "1"]
[TimeControl "1500+10"]

1. e4 {[%emt 0:00:00]} c5 {[%emt 0:00:01]} 2. Nf3 {[%emt 0:00:02]} d6 {[%emt 0:00:00]} 3. Bb5+ {[%emt 0:00:03]} Nd7 {[%emt 0:00:01]} 4. d4 {[%emt 0:00:01]} cxd4 {[%emt 0:00:02]} 5. Nxd4 {[%emt 0:00:02]} Ngf6 {[%emt 0:00:03]} 6. O-O {[%emt 0:00:03]} a6 {[%emt 0:00:02]} 7. Bd3 {[%emt 0:00:02]} g6 {[%emt 0:00:21]} 8. c4 {[%emt 0:00:12]} Bg7 {[%emt 0:00:02]} 9. Nc3 {[%emt 0:00:23]} O-O {[%emt 0:00:02]} 10. Re1 {[%emt 0:00:30]} Qc7 {[%emt 0:00:36]} 11. Bf1 {[%emt 0:01:03]} e6 {[%emt 0:00:44]} 12. Be3 {[%emt 0:00:42]} b6 {[%emt 0:00:06]} 13. Rc1 {[%emt 0:00:09]} Bb7 {[%emt 0:00:01]} 14. f3 {[%emt 0:00:08]} Rac8 {[%emt 0:00:08]} 15. Qd2 {[%emt 0:00:18]} Rfd8 {[%emt 0:00:16]} 16. Red1 {[%emt 0:00:14]} Qb8 {[%emt 0:00:17]} 17. Qf2 {[%emt 0:00:15]} Ne5 {[%emt 0:01:27]} 18. Na4 {[%emt 0:00:28]} Ba8 {[%emt 0:01:04]} 19. Qh4 {[%emt 0:03:47]} Nfd7 {[%emt 0:01:53]} 20. b3 {[%emt 0:00:16]} Nc5 {[%emt 0:01:14]} 21. Nc3 {[%emt 0:00:06]} Nc6 {[%emt 0:00:53]} 22. Nxc6 {[%emt 0:01:48]} Bxc6 {[%emt 0:00:02]} 23. Bg5 {[%emt 0:06:15]} Rd7 {[%emt 0:00:55]} 24. Bf6 {[%emt 0:01:17]} Bxf6 {[%emt 0:03:18]} 25. Qxf6 {[%emt 0:00:02]} e5 {[%emt 0:00:43]} 26. g3 {[%emt 0:03:04]} Rf8 {[%emt 0:04:56]} 27. Bh3 {[%emt 0:00:34]} Qd8 {[%emt 0:01:26]} 28. Qxd8 {[%emt 0:00:22]} Rdxd8 {[%emt 0:00:01]} 29. Rd2 {[%emt 0:00:51]} f5 {[%emt 0:00:27]} 30. Rcd1 {[%emt 0:00:42]} fxe4 {[%emt 0:02:32]} 31. fxe4 {[%emt 0:01:12]} Rf3 {[%emt 0:01:19]} 32. Rxd6 {[%emt 0:00:26]} Rxd6 {[%emt 0:00:02]} 33. Rxd6 {[%emt 0:00:02]} Rxc3 {[%emt 0:00:12]} 34. Rxc6 {[%emt 0:00:01]} Nxe4 {[%emt 0:00:04]} 35. Be6+ {[%emt 0:00:31]} Kg7 {[%emt 0:00:08]} 36. Bd5 {[%emt 0:00:06]} Rc1+ {[%emt 0:01:14]} 37. Kg2 {[%emt 0:00:03]} Nc3 {[%emt 0:01:26]} 38. Rxb6 {[%emt 0:00:52]} e4 {[%emt 0:00:03]} 39. Re6 {[%emt 0:00:16]} Re1 {[%emt 0:01:00]} 40. h4 {[%emt 0:01:06]} Re2+ {[%emt 0:01:06]} 41. Kg1 {[%emt 0:00:37]} Rxa2 {[%emt 0:01:03]} 42. g4 {[%emt 0:00:22]} Rb2 {[%emt 0:00:45]} 43. g5 {[%emt 0:00:17]} Kf8 {[%emt 0:00:08]} 44. Bxe4 {[%emt 0:00:50]} Rxb3 {[%emt 0:00:12]} 45. c5 {[%emt 0:00:47]} Nxe4 {[%emt 0:00:11]} 46. Rxe4 {[%emt 0:00:01]} Rc3 {[%emt 0:00:09]} 47. Ra4 {[%emt 0:00:11]} Rxc5 {[%emt 0:00:06]} 48. Rxa6 {[%emt 0:00:01]} Rc4 {[%emt 0:00:02]} 49. Ra8+ {[%emt 0:00:02]} Kf7 {[%emt 0:00:09]} 50. Ra7+ {[%emt 0:00:01]} Kg8 {[%emt 0:00:18]} 51. Ra8+ {[%emt 0:00:01]} Kg7 {[%emt 0:00:06]} 1/2-1/2

[Event "FIDE Womens World Cup 2021"]
[Site "Sochi"]
[Date "2021.07.24"]
[Round "4.4"]
[White "Shuvalova, Polina"]
[Black "Dzagnidze, Nana"]
[Result "1-0"]
[ECO "B91"]
[WhiteElo "2489"]
[BlackElo "2523"]
[Annotator "ChessBase"]
[PlyCount "61"]
[EventDate "2021.07.12"]
[EventType "k.o."]
[EventCountry "RUS"]
[SourceTitle "playchess.com"]
[Source "ChessBase"]
[SourceQuality "1"]
[TimeControl "1500+10"]

1. e4 {[%emt 0:00:03]} c5 {[%emt 0:00:02]} 2. Nf3 {[%emt 0:00:02]} d6 {[%emt 0:00:01]} 3. d4 {[%emt 0:00:02]} cxd4 {[%emt 0:00:03]} 4. Nxd4 {[%emt 0:00:01]} Nf6 {[%emt 0:00:02]} 5. Nc3 {[%emt 0:00:02]} a6 {[%emt 0:00:02]} 6. g3 {[%emt 0:00:24]} e5 {[%emt 0:00:13]} 7. Nb3 {[%emt 0:00:02]} Be7 {[%emt 0:00:43]} 8. Bg5 {[%emt 0:00:18]} Nbd7 {[%emt 0:00:25]} 9. a4 {[%emt 0:00:04]} b6 {[%emt 0:00:12]} 10. Bc4 {[%emt 0:00:14]} Bb7 {[%emt 0:00:09]} 11. Nd2 {[%emt 0:00:16]} O-O {[%emt 0:00:08]} 12. O-O {[%emt 0:02:11]} Rc8 {[%emt 0:04:06]} 13. Qe2 {[%emt 0:00:12]} Nc5 {[%emt 0:06:31]} 14. Rfd1 {[%emt 0:01:19]} Ne6 {[%emt 0:00:17]} 15. Bxf6 {[%emt 0:00:57]} Bxf6 {[%emt 0:00:09]} 16. Rac1 {[%emt 0:00:12]} Bg5 {[%emt 0:00:11]} 17. Kg2 {[%emt 0:01:49]} b5 {[%emt 0:03:19]} 18. axb5 {[%emt 0:00:53]} axb5 {[%emt 0:00:01]} 19. Nxb5 {[%emt 0:01:14]} Bxd2 {[%emt 0:02:33]} 20. Rxd2 {[%emt 0:00:48]} Rxc4 {[%emt 0:02:15]} 21. Qxc4 {[%emt 0:01:16]} Qg5 {[%emt 0:00:02]} 22. Rcd1 {[%emt 0:00:55]} Qg4 {[%emt 0:00:12]} 23. Nxd6 {[%emt 0:03:49]} Nf4+ {[%emt 0:04:25]} 24. Kg1 {[%emt 0:00:07]} Ba8 {[%emt 0:01:06]} 25. Nxf7 {[%emt 0:03:18]} Bd5 {[%emt 0:01:03]} 26. Rxd5 {[%emt 0:01:14]} Nh3+ {[%emt 0:00:28]} 27. Kg2 {[%emt 0:01:47]} Nf4+ {[%emt 0:00:09]} 28. Kf1 {[%emt 0:00:33]} Qh3+ {[%emt 0:00:13]} 29. Ke1 {[%emt 0:00:02]} Ng2+ {[%emt 0:00:05]} 30. Kd2 {[%emt 0:00:06]} Qe6 {[%emt 0:00:43]} 31. Ng5 1-0

[Event "FIDE Womens World Cup 2021"]
[Site "Sochi"]
[Date "2021.07.24"]
[Round "4.4"]
[White "Kashlinskaya, Alina"]
[Black "Saduakassova, Dinara"]
[Result "1-0"]
[ECO "E37"]
[WhiteElo "2488"]
[BlackElo "2483"]
[Annotator "ChessBase"]
[PlyCount "85"]
[EventDate "2021.07.12"]
[EventType "k.o."]
[EventCountry "RUS"]
[SourceTitle "playchess.com"]
[Source "ChessBase"]
[SourceQuality "1"]
[TimeControl "1500+10"]

1. d4 {[%emt 0:00:01]} Nf6 {[%emt 0:00:02]} 2. c4 {[%emt 0:00:01]} e6 {[%emt 0:00:01]} 3. Nc3 {[%emt 0:00:02]} Bb4 {[%emt 0:00:01]} 4. Qc2 {[%emt 0:00:01]} d5 {[%emt 0:00:05]} 5. a3 {[%emt 0:00:01]} Bxc3+ {[%emt 0:00:18]} 6. Qxc3 {[%emt 0:00:02]} Ne4 {[%emt 0:00:20]} 7. Qc2 {[%emt 0:00:02]} c5 {[%emt 0:00:06]} 8. dxc5 {[%emt 0:00:05]} Nc6 {[%emt 0:00:34]} 9. Nf3 {[%emt 0:00:08]} Qa5+ {[%emt 0:01:46]} 10. Bd2 {[%emt 0:00:03]} Qxc5 {[%emt 0:01:38]} 11. e3 {[%emt 0:00:08]} Nxd2 {[%emt 0:00:57]} 12. Nxd2 {[%emt 0:00:02]} h6 {[%emt 0:01:54]} 13. b4 {[%emt 0:03:22]} Qe7 {[%emt 0:00:02]} 14. Be2 {[%emt 0:00:10]} d4 {[%emt 0:01:42]} 15. e4 {[%emt 0:01:56]} e5 {[%emt 0:00:42]} 16. c5 {[%emt 0:00:15]} O-O {[%emt 0:00:52]} 17. O-O {[%emt 0:02:12]} Be6 {[%emt 0:00:22]} 18. Nc4 {[%emt 0:00:50]} Rfd8 {[%emt 0:01:03]} 19. Bd3 {[%emt 0:00:39]} Rac8 {[%emt 0:01:43]} 20. Rac1 {[%emt 0:00:35]} Bxc4 {[%emt 0:03:21]} 21. Qxc4 {[%emt 0:00:48]} b6 {[%emt 0:00:37]} 22. cxb6 {[%emt 0:01:18]} axb6 {[%emt 0:00:14]} 23. Qa6 {[%emt 0:02:52]} Qa7 {[%emt 0:00:24]} 24. Rfd1 {[%emt 0:04:18]} Qb8 {[%emt 0:01:08]} 25. g3 {[%emt 0:01:07]} Ne7 {[%emt 0:00:50]} 26. a4 {[%emt 0:01:09]} Rc3 {[%emt 0:02:02]} 27. a5 {[%emt 0:00:29]} bxa5 {[%emt 0:00:16]} 28. bxa5 {[%emt 0:00:01]} Qc7 {[%emt 0:01:26]} 29. Rb1 {[%emt 0:01:10]} Nc6 {[%emt 0:00:29]} 30. Rb6 {[%emt 0:00:45]} Rc5 {[%emt 0:00:36]} 31. Ra1 {[%emt 0:00:11]} Rd7 {[%emt 0:01:36]} 32. Rb5 {[%emt 0:01:54]} Rc3 {[%emt 0:00:25]} 33. Rd5 {[%emt 0:01:32]} Kh7 {[%emt 0:01:05]} 34. Qb5 {[%emt 0:00:22]} Rd8 {[%emt 0:00:32]} 35. Rxd8 {[%emt 0:01:31]} Qxd8 {[%emt 0:00:01]} 36. a6 {[%emt 0:00:10]} Na7 {[%emt 0:00:07]} 37. Qb1 {[%emt 0:00:36]} Qc7 {[%emt 0:00:12]} 38. Kg2 {[%emt 0:00:02]} h5 {[%emt 0:00:09]} 39. Qb7 {[%emt 0:00:04]} Qc6 {[%emt 0:01:31]} 40. Qxa7 Rxd3 {[%emt 0:00:01]} 41. Qxf7 {[%emt 0:00:23]} Qxe4+ {[%emt 0:00:02]} 42. Kg1 {[%emt 0:00:03]} Rb3 {[%emt 0:00:38]} 43. Qxb3 {[%emt 0:00:03]} 1-0

[Event "FIDE Womens World Cup 2021"]
[Site "Sochi"]
[Date "2021.07.24"]
[Round "4.4"]
[White "Stefanova, Antoaneta"]
[Black "Goryachkina, Aleksandra"]
[Result "0-1"]
[ECO "D78"]
[WhiteElo "2463"]
[BlackElo "2596"]
[Annotator "ChessBase"]
[PlyCount "112"]
[EventDate "2021.07.12"]
[EventType "k.o."]
[EventCountry "RUS"]
[SourceTitle "playchess.com"]
[Source "ChessBase"]
[SourceQuality "1"]
[TimeControl "1500+10"]

1. Nf3 {[%emt 0:00:02]} d5 {[%emt 0:00:02]} 2. g3 {[%emt 0:00:01]} g6 {[%emt 0:00:03]} 3. Bg2 {[%emt 0:00:49]} Bg7 {[%emt 0:00:06]} 4. O-O {[%emt 0:00:05]} Nf6 {[%emt 0:00:05]} 5. d4 {[%emt 0:01:18]} O-O {[%emt 0:00:04]} 6. c4 {[%emt 0:00:02]} c6 {[%emt 0:00:06]} 7. Qb3 {[%emt 0:00:41]} a5 {[%emt 0:00:16]} 8. Rd1 {[%emt 0:02:28]} a4 {[%emt 0:00:50]} 9. Qb4 {[%emt 0:00:15]} dxc4 {[%emt 0:00:42]} 10. Qxc4 {[%emt 0:00:12]} Qd5 {[%emt 0:00:26]} 11. Qb4 {[%emt 0:01:22]} Qd6 {[%emt 0:00:19]} 12. Qe1 {[%emt 0:00:22]} Bf5 {[%emt 0:02:50]} 13. Nc3 {[%emt 0:06:11]} Ne4 {[%emt 0:04:32]} 14. Nh4 {[%emt 0:00:03]} Nxc3 {[%emt 0:00:05]} 15. bxc3 {[%emt 0:00:17]} Be6 {[%emt 0:00:35]} 16. e4 {[%emt 0:00:11]} Bc4 {[%emt 0:01:05]} 17. f4 {[%emt 0:00:31]} f5 {[%emt 0:01:49]} 18. e5 {[%emt 0:01:10]} Qd7 {[%emt 0:00:24]} 19. Ba3 {[%emt 0:00:36]} Na6 {[%emt 0:00:20]} 20. Nf3 {[%emt 0:00:55]} Nc7 {[%emt 0:00:56]} 21. Nd2 {[%emt 0:02:51]} Bd5 {[%emt 0:00:31]} 22. Bf1 {[%emt 0:00:02]} b5 {[%emt 0:00:09]} 23. c4 {[%emt 0:00:15]} bxc4 {[%emt 0:00:23]} 24. Nxc4 {[%emt 0:00:02]} Rfb8 {[%emt 0:03:08]} 25. Bc5 {[%emt 0:00:12]} Bxc4 {[%emt 0:00:38]} 26. Bxc4+ {[%emt 0:00:03]} Nd5 {[%emt 0:00:11]} 27. Rab1 {[%emt 0:01:48]} Bf8 {[%emt 0:03:33]} 28. Rxb8 {[%emt 0:01:53]} Rxb8 {[%emt 0:00:02]} 29. Rb1 {[%emt 0:00:08]} Qd8 {[%emt 0:01:13]} 30. Rxb8 {[%emt 0:01:26]} Qxb8 {[%emt 0:00:01]} 31. Qb4 {[%emt 0:00:01]} Qxb4 {[%emt 0:02:23]} 32. Bxb4 {[%emt 0:00:02]} e6 {[%emt 0:00:03]} 33. Bxf8 {[%emt 0:00:55]} Kxf8 {[%emt 0:00:01]} 34. Kf2 {[%emt 0:00:02]} Ke7 {[%emt 0:00:12]} 35. Ke2 {[%emt 0:00:08]} Kd7 {[%emt 0:02:12]} 36. Kd3 {[%emt 0:00:27]} Ne7 {[%emt 0:00:36]} 37. Kc3 {[%emt 0:00:18]} h6 {[%emt 0:00:08]} 38. Kb4 {[%emt 0:01:44]} g5 {[%emt 0:00:03]} 39. fxg5 {[%emt 0:00:02]} hxg5 {[%emt 0:00:01]} 40. Kxa4 {[%emt 0:00:04]} c5 {[%emt 0:00:34]} 41. dxc5 {[%emt 0:00:43]} Ng6 {[%emt 0:00:00]} 42. Kb5 {[%emt 0:00:12]} Nxe5 {[%emt 0:00:02]} 43. Be2 {[%emt 0:00:13]} f4 {[%emt 0:00:04]} 44. gxf4 {[%emt 0:00:05]} gxf4 {[%emt 0:00:01]} 45. h4 {[%emt 0:00:22]} f3 {[%emt 0:00:27]} 46. Bf1 {[%emt 0:00:03]} Kc7 {[%emt 0:00:15]} 47. h5 {[%emt 0:00:12]} Ng4 {[%emt 0:00:01]} 48. a4 {[%emt 0:00:15]} e5 {[%emt 0:00:09]} 49. a5 {[%emt 0:00:56]} e4 {[%emt 0:00:01]} 50. Bh3 {[%emt 0:00:07]} e3 {[%emt 0:00:11]} 51. a6 {[%emt 0:00:14]} e2 {[%emt 0:00:09]} 52. a7 {[%emt 0:00:02]} Kb7 {[%emt 0:00:29]} 53. c6+ {[%emt 0:00:26]} Kxa7 {[%emt 0:00:01]} 54. c7 {[%emt 0:00:02]} Kb7 {[%emt 0:00:23]} 55. Bxg4 {[%emt 0:00:04]} Kxc7 {[%emt 0:00:02]} 56. Bxf3 {[%emt 0:00:04]} e1=Q {[%emt 0:00:01]} 0-1